[Event "Titled Tuesday Blitz December 20 Early 2022"]
[White "Karttunen, Mika"]
[Black "Aza, Saulo"]
[WhiteFideId "502081"]
[BlackFideId "4410394"]
[WhiteElo "2490"]
[BlackElo "1667"]
[Result "1/2-1/2"]
[Round "09"]
[TimeControl "180+2"]
[Date "2022.12.20"]
[WhiteClock "0:00:14"]
[BlackClock "0:00:04"]

1. e4 {[%clk 0:03:00]}  c5 {[%clk 0:02:59]} 2. Nf3 {[%clk 0:03:00]}  d6 {[%clk 0:02:59]} 3. d4 {[%clk 0:02:59]}  cxd4 {[%clk 0:02:59]} 4. Nxd4 {[%clk 0:03:00]}  Nf6 {[%clk 0:02:59]} 5. Nc3 {[%clk 0:03:01]}  Nc6 {[%clk 0:02:59]} 6. Bc4 {[%clk 0:03:00]}  e6 {[%clk 0:02:54]} 7. Be3 {[%clk 0:02:59]}  a6 {[%clk 0:02:52]} 8. Qe2 {[%clk 0:02:59]}  Qc7 {[%clk 0:02:50]} 9. O-O-O {[%clk 0:02:58]}  Na5 {[%clk 0:02:50]} 10. Bb3 {[%clk 0:02:54]}  b5 {[%clk 0:02:48]} 11. a3 {[%clk 0:02:49]}  Nxb3+ {[%clk 0:02:41]} 12. Nxb3 {[%clk 0:02:41]}  Bb7 {[%clk 0:02:41]} 13. Bf4 {[%clk 0:02:32]}  Rc8 {[%clk 0:02:31]} 14. Rd2 {[%clk 0:02:27]}  h6 {[%clk 0:02:23]} 15. Rhd1 {[%clk 0:02:26]}  e5 {[%clk 0:02:22]} 16. Bg3 {[%clk 0:02:02]}  Qc4 {[%clk 0:02:08]} 17. Na5 {[%clk 0:01:32]}  Qxe2 {[%clk 0:02:01]} 18. Rxe2 {[%clk 0:01:32]}  Ba8 {[%clk 0:01:54]} 19. f3 {[%clk 0:01:18]}  Be7 {[%clk 0:01:43]} 20. Na2 {[%clk 0:01:17]}  Bd8 {[%clk 0:01:26]} 21. Nb3 {[%clk 0:01:09]}  Bc7 {[%clk 0:01:24]} 22. Nb4 {[%clk 0:00:11]}  Bb7 {[%clk 0:01:22]} 23. Nd5 {[%clk 0:00:05]}  Nxd5 {[%clk 0:01:15]} 24. exd5 {[%clk 0:00:06]}  O-O {[%clk 0:01:15]} 25. f4 {[%clk 0:00:06]}  f6 {[%clk 0:01:14]} 26. fxe5 {[%clk 0:00:06]}  fxe5 {[%clk 0:01:13]} 27. Bf2 {[%clk 0:00:05]}  Rf5 {[%clk 0:01:07]} 28. Be3 {[%clk 0:00:04]}  Rcf8 {[%clk 0:01:05]} 29. Kb1 {[%clk 0:00:03]}  g5 {[%clk 0:01:01]} 30. Red2 {[%clk 0:00:03]}  Kg7 {[%clk 0:01:01]} 31. Ka2 {[%clk 0:00:03]}  Kg6 {[%clk 0:01:01]} 32. c3 {[%clk 0:00:03]}  R5f7 {[%clk 0:00:54]} 33. Rc2 {[%clk 0:00:04]}  Bc8 {[%clk 0:00:51]} 34. c4 {[%clk 0:00:04]}  Bf5 {[%clk 0:00:51]} 35. Rc3 {[%clk 0:00:04]}  bxc4 {[%clk 0:00:41]} 36. Rxc4 {[%clk 0:00:04]}  a5 {[%clk 0:00:36]} 37. Rc6 {[%clk 0:00:04]}  Be4 {[%clk 0:00:30]} 38. Rd2 {[%clk 0:00:04]}  a4 {[%clk 0:00:27]} 39. Nc5 {[%clk 0:00:04]}  Bf5 {[%clk 0:00:16]} 40. Na6 {[%clk 0:00:04]}  Ba5 {[%clk 0:00:13]} 41. Rxd6+ {[%clk 0:00:04]}  Kh5 {[%clk 0:00:13]} 42. Re2 {[%clk 0:00:04]}  Bd3 {[%clk 0:00:13]} 43. Rd2 {[%clk 0:00:04]}  Bc4+ {[%clk 0:00:12]} 44. Kb1 {[%clk 0:00:04]}  Bb3 {[%clk 0:00:11]} 45. Rc2 {[%clk 0:00:03]}  Bxc2+ {[%clk 0:00:08]} 46. Kxc2 {[%clk 0:00:03]}  Rf1 {[%clk 0:00:09]} 47. Kd3 {[%clk 0:00:02]}  Rd1+ {[%clk 0:00:08]} 48. Ke4 {[%clk 0:00:02]}  Rb1 {[%clk 0:00:08]} 49. Nc5 {[%clk 0:00:02]}  Rxb2 {[%clk 0:00:08]} 50. Kxe5 {[%clk 0:00:03]}  Re2 {[%clk 0:00:08]} 51. Kd4 {[%clk 0:00:03]}  Bd2 {[%clk 0:00:07]} 52. Re6 {[%clk 0:00:03]}  Bxe3+ {[%clk 0:00:06]} 53. Rxe3 {[%clk 0:00:03]}  Rxg2 {[%clk 0:00:06]} 54. d6 {[%clk 0:00:03]}  Rd2+ {[%clk 0:00:05]} 55. Rd3 {[%clk 0:00:03]}  Rxd3+ {[%clk 0:00:04]} 56. Kxd3 {[%clk 0:00:04]}  Kg4 {[%clk 0:00:04]} 57. Ke4 {[%clk 0:00:04]}  Rd8 {[%clk 0:00:04]} 58. Ke5 {[%clk 0:00:05]}  Kh3 {[%clk 0:00:05]} 59. Nxa4 {[%clk 0:00:05]}  Kxh2 {[%clk 0:00:05]} 60. Nc5 {[%clk 0:00:05]}  g4 {[%clk 0:00:05]} 61. Ne6 {[%clk 0:00:06]}  Rd7 {[%clk 0:00:04]} 62. Nc5 {[%clk 0:00:06]}  Rd8 {[%clk 0:00:05]} 63. Ne6 {[%clk 0:00:06]}  Rxd6 {[%clk 0:00:05]} 64. Kxd6 {[%clk 0:00:07]}  g3 {[%clk 0:00:05]} 65. a4 {[%clk 0:00:07]}  g2 {[%clk 0:00:05]} 66. Nd4 {[%clk 0:00:08]}  g1=Q {[%clk 0:00:06]} 67. Nf3+ {[%clk 0:00:08]}  Kg2 {[%clk 0:00:05]} 68. Nxg1 {[%clk 0:00:09]}  Kxg1 {[%clk 0:00:03]} 69. a5 {[%clk 0:00:10]}  h5 {[%clk 0:00:03]} 70. a6 {[%clk 0:00:11]}  h4 {[%clk 0:00:03]} 71. a7 {[%clk 0:00:12]}  h3 {[%clk 0:00:04]} 72. a8=Q {[%clk 0:00:13]}  h2 {[%clk 0:00:05]} 73. Qg8+ {[%clk 0:00:13]}  Kf2 {[%clk 0:00:04]} 74. Qf7+ {[%clk 0:00:13]}  Kg2 {[%clk 0:00:04]} 75. Qg6+ {[%clk 0:00:13]}  Kh1 {[%clk 0:00:03]} 76. Qf5 {[%clk 0:00:13]}  Kg2 {[%clk 0:00:03]} 77. Qg4+ {[%clk 0:00:14]}  Kf2 {[%clk 0:00:04]} 78. Qf4+ {[%clk 0:00:14]}  Kg2 {[%clk 0:00:04]} 79. Qxh2+ {[%clk 0:00:14]}  Kxh2 {[%clk 0:00:04]} 1/2-1/2


[Site "https://www.chess.com"]

[Event "Titled Tuesday Blitz December 20 Early 2022"]
[White "Kazgildy, Fariza"]
[Black "Kildepiotr"]
[WhiteFideId "13724860"]
[WhiteElo "1189"]
[BlackElo "2682"]
[Result "0-1"]
[Round "09"]
[TimeControl "180+2"]
[Date "2022.12.20"]
[WhiteClock "0:00:04"]
[BlackClock "0:00:20"]

1. e4 {[%clk 0:03:00]}  g6 {[%clk 0:02:38]} 2. d4 {[%clk 0:03:00]}  Bg7 {[%clk 0:02:39]} 3. Nc3 {[%clk 0:03:00]}  c6 {[%clk 0:02:39]} 4. Be3 {[%clk 0:02:58]}  d5 {[%clk 0:02:39]} 5. e5 {[%clk 0:02:56]}  Nh6 {[%clk 0:02:39]} 6. Qd2 {[%clk 0:02:49]}  Nf5 {[%clk 0:02:38]} 7. Bf4 {[%clk 0:02:50]}  c5 {[%clk 0:02:38]} 8. Nf3 {[%clk 0:02:46]}  cxd4 {[%clk 0:02:34]} 9. Nxd4 {[%clk 0:02:46]}  Nxd4 {[%clk 0:02:34]} 10. Qxd4 {[%clk 0:02:46]}  Be6 {[%clk 0:02:29]} 11. O-O-O {[%clk 0:02:45]}  Nc6 {[%clk 0:02:28]} 12. Bb5 {[%clk 0:02:29]}  O-O {[%clk 0:02:28]} 13. Bxc6 {[%clk 0:02:28]}  bxc6 {[%clk 0:02:28]} 14. Na4 {[%clk 0:02:21]}  f6 {[%clk 0:02:21]} 15. Nc5 {[%clk 0:02:18]}  Bf5 {[%clk 0:02:16]} 16. exf6 {[%clk 0:02:08]}  Bxf6 {[%clk 0:02:14]} 17. Be5 {[%clk 0:01:50]}  Bxe5 {[%clk 0:02:02]} 18. Qxe5 {[%clk 0:01:50]}  Qd6 {[%clk 0:02:02]} 19. Qxd6 {[%clk 0:01:39]}  exd6 {[%clk 0:02:03]} 20. Nb7 {[%clk 0:01:31]}  Rf6 {[%clk 0:02:02]} 21. Rhe1 {[%clk 0:01:31]}  Kf8 {[%clk 0:01:54]} 22. Na5 {[%clk 0:01:30]}  Bd7 {[%clk 0:01:52]} 23. f3 {[%clk 0:01:30]}  Re8 {[%clk 0:01:47]} 24. Rxe8+ {[%clk 0:01:29]}  Kxe8 {[%clk 0:01:48]} 25. Re1+ {[%clk 0:01:29]}  Kd8 {[%clk 0:01:47]} 26. c3 {[%clk 0:01:28]}  c5 {[%clk 0:01:43]} 27. Nb3 {[%clk 0:01:27]}  g5 {[%clk 0:01:35]} 28. Rd1 {[%clk 0:01:13]}  Be6 {[%clk 0:01:34]} 29. c4 {[%clk 0:01:05]}  dxc4 {[%clk 0:01:23]} 30. Nxc5 {[%clk 0:01:05]}  Bf5 {[%clk 0:01:05]} 31. Ne4 {[%clk 0:00:42]}  Bxe4 {[%clk 0:01:05]} 32. fxe4 {[%clk 0:00:43]}  Ke7 {[%clk 0:01:06]} 33. Rd2 {[%clk 0:00:40]}  Ke6 {[%clk 0:01:01]} 34. Kc2 {[%clk 0:00:38]}  Rf4 {[%clk 0:01:00]} 35. Re2 {[%clk 0:00:32]}  Ke5 {[%clk 0:00:59]} 36. Kc3 {[%clk 0:00:30]}  Rxe4 {[%clk 0:00:43]} 37. Rf2 {[%clk 0:00:24]}  d5 {[%clk 0:00:41]} 38. Rf7 {[%clk 0:00:24]}  Re3+ {[%clk 0:00:38]} 39. Kb4 {[%clk 0:00:24]}  Kd4 {[%clk 0:00:28]} 40. Rxh7 {[%clk 0:00:16]}  Re2 {[%clk 0:00:28]} 41. Ka3 {[%clk 0:00:16]}  Rxg2 {[%clk 0:00:27]} 42. Rxa7 {[%clk 0:00:13]}  Rxh2 {[%clk 0:00:27]} 43. Rg7 {[%clk 0:00:14]}  Rg2 {[%clk 0:00:26]} 44. b4 {[%clk 0:00:08]}  c3 {[%clk 0:00:24]} 45. Rc7 {[%clk 0:00:08]}  Kd3 {[%clk 0:00:22]} 46. b5 {[%clk 0:00:08]}  d4 {[%clk 0:00:20]} 47. b6 {[%clk 0:00:08]}  Rb2 {[%clk 0:00:21]} 48. Rc6 {[%clk 0:00:08]}  g4 {[%clk 0:00:21]} 49. Rg6 {[%clk 0:00:06]}  Kc4 {[%clk 0:00:20]} 50. Rxg4 {[%clk 0:00:04]}  Rxb6 {[%clk 0:00:20]} 0-1


[Site "https://www.chess.com"]

[Event "Titled Tuesday Blitz December 20 Early 2022"]
[White "KerryStead"]
[Black "Sunny_Star"]
[WhiteElo "2033"]
[BlackElo "2241"]
[Result "0-1"]
[Round "09"]
[TimeControl "180+2"]
[Date "2022.12.20"]
[WhiteClock "0:00:57"]
[BlackClock "0:01:30"]

1. d4 {[%clk 0:03:00]}  Nf6 {[%clk 0:02:56]} 2. f3 {[%clk 0:03:00]}  d5 {[%clk 0:02:55]} 3. e4 {[%clk 0:03:00]}  dxe4 {[%clk 0:02:55]} 4. Nc3 {[%clk 0:03:01]}  exf3 {[%clk 0:02:54]} 5. Nxf3 {[%clk 0:03:02]}  Bg4 {[%clk 0:02:53]} 6. h3 {[%clk 0:03:02]}  Bf5 {[%clk 0:02:52]} 7. Bc4 {[%clk 0:02:58]}  e6 {[%clk 0:02:52]} 8. O-O {[%clk 0:02:55]}  Bd6 {[%clk 0:02:42]} 9. Ng5 {[%clk 0:02:53]}  O-O {[%clk 0:02:37]} 10. g4 {[%clk 0:02:43]}  Bg6 {[%clk 0:02:36]} 11. Rxf6 {[%clk 0:02:30]}  Qxf6 {[%clk 0:02:30]} 12. Nce4 {[%clk 0:02:28]}  Bxe4 {[%clk 0:02:24]} 13. Nxe4 {[%clk 0:02:27]}  Qh4 {[%clk 0:02:24]} 14. Qf3 {[%clk 0:02:16]}  Qd8 {[%clk 0:02:16]} 15. Nxd6 {[%clk 0:02:13]}  Qxd6 {[%clk 0:02:15]} 16. c3 {[%clk 0:02:13]}  Nc6 {[%clk 0:02:14]} 17. Bf4 {[%clk 0:02:11]}  e5 {[%clk 0:02:14]} 18. Bg3 {[%clk 0:02:04]}  Kh8 {[%clk 0:02:04]} 19. Re1 {[%clk 0:01:57]}  f6 {[%clk 0:01:58]} 20. dxe5 {[%clk 0:01:53]}  Qc5+ {[%clk 0:01:54]} 21. Kh2 {[%clk 0:01:37]}  Qxc4 {[%clk 0:01:53]} 22. exf6 {[%clk 0:01:36]}  Rxf6 {[%clk 0:01:51]} 23. Qe3 {[%clk 0:01:33]}  Raf8 {[%clk 0:01:44]} 24. b3 {[%clk 0:01:30]}  Qf7 {[%clk 0:01:42]} 25. g5 {[%clk 0:01:25]}  Rf3 {[%clk 0:01:42]} 26. Qe4 {[%clk 0:01:08]}  Qh5 {[%clk 0:01:35]} 27. Qg4 {[%clk 0:01:00]}  Qxg4 {[%clk 0:01:34]} 28. hxg4 {[%clk 0:01:01]}  Rxc3 {[%clk 0:01:34]} 29. Bxc7 {[%clk 0:01:00]}  Nd4 {[%clk 0:01:30]} 30. Bd6 {[%clk 0:00:57]}  Nf3+ {[%clk 0:01:30]} 0-1


[Site "https://www.chess.com"]

[Event "Titled Tuesday Blitz December 20 Early 2022"]
[White "Klose, Eli"]
[Black "RamonManon0g"]
[WhiteFideId "16242955"]
[WhiteElo "1519"]
[BlackElo "2372"]
[Result "1-0"]
[Round "09"]
[TimeControl "180+2"]
[Date "2022.12.20"]
[WhiteClock "0:02:03"]
[BlackClock "0:01:10"]

1. e4 {[%clk 0:02:57]}  c5 {[%clk 0:02:58]} 2. Nc3 {[%clk 0:02:56]}  d6 {[%clk 0:02:58]} 3. g3 {[%clk 0:02:56]}  Nf6 {[%clk 0:02:57]} 4. d3 {[%clk 0:02:56]}  e5 {[%clk 0:02:58]} 5. f4 {[%clk 0:02:54]}  Be7 {[%clk 0:02:59]} 6. Bg2 {[%clk 0:02:54]}  O-O {[%clk 0:02:59]} 7. Nf3 {[%clk 0:02:53]}  Nc6 {[%clk 0:02:59]} 8. O-O {[%clk 0:02:53]}  Bg4 {[%clk 0:02:59]} 9. h3 {[%clk 0:02:53]}  Bxf3 {[%clk 0:02:58]} 10. Qxf3 {[%clk 0:02:54]}  Nd4 {[%clk 0:02:58]} 11. Qf2 {[%clk 0:02:55]}  Qd7 {[%clk 0:02:56]} 12. Be3 {[%clk 0:02:54]}  Rab8 {[%clk 0:02:55]} 13. g4 {[%clk 0:02:45]}  exf4 {[%clk 0:02:48]} 14. Bxf4 {[%clk 0:02:33]}  b5 {[%clk 0:02:40]} 15. g5 {[%clk 0:02:28]}  Nh5 {[%clk 0:02:34]} 16. Be3 {[%clk 0:02:28]}  Ne6 {[%clk 0:02:30]} 17. Qh4 {[%clk 0:02:23]}  g6 {[%clk 0:02:30]} 18. Nd5 {[%clk 0:02:23]}  Bd8 {[%clk 0:02:26]} 19. Nf6+ {[%clk 0:02:20]}  Nxf6 {[%clk 0:02:20]} 20. gxf6 {[%clk 0:02:20]}  Re8 {[%clk 0:01:47]} 21. Qh6 {[%clk 0:02:18]}  Kh8 {[%clk 0:01:20]} 22. Rf4 {[%clk 0:02:03]}  Rg8 {[%clk 0:01:11]} 23. Qxh7+ {[%clk 0:02:02]}  Kxh7 {[%clk 0:01:10]} 24. Rh4# {[%clk 0:02:03]} 1-0


[Site "https://www.chess.com"]

[Event "Titled Tuesday Blitz December 20 Early 2022"]
[White "Korchmar_Vasiliy"]
[Black "Bilandani, Vansh"]
[BlackFideId "8511292"]
[WhiteElo "2703"]
[BlackElo "2488"]
[Result "1/2-1/2"]
[Round "09"]
[TimeControl "180+2"]
[Date "2022.12.20"]
[WhiteClock "0:00:03"]
[BlackClock "0:00:08"]

1. e4 {[%clk 0:03:00]}  c6 {[%clk 0:02:56]} 2. d4 {[%clk 0:03:01]}  d5 {[%clk 0:02:56]} 3. e5 {[%clk 0:03:01]}  c5 {[%clk 0:02:54]} 4. dxc5 {[%clk 0:03:01]}  e6 {[%clk 0:02:51]} 5. Nf3 {[%clk 0:03:01]}  Bxc5 {[%clk 0:02:51]} 6. Bd3 {[%clk 0:03:02]}  Ne7 {[%clk 0:02:46]} 7. O-O {[%clk 0:03:03]}  Nbc6 {[%clk 0:02:38]} 8. a3 {[%clk 0:03:02]}  Ng6 {[%clk 0:02:31]} 9. b4 {[%clk 0:02:58]}  Bb6 {[%clk 0:02:26]} 10. Re1 {[%clk 0:02:57]}  Bd7 {[%clk 0:01:56]} 11. Nbd2 {[%clk 0:02:45]}  Nd4 {[%clk 0:01:11]} 12. Bb2 {[%clk 0:02:31]}  Nxf3+ {[%clk 0:01:08]} 13. Qxf3 {[%clk 0:02:32]}  Qg5 {[%clk 0:01:01]} 14. Nb3 {[%clk 0:02:21]}  Nh4 {[%clk 0:00:50]} 15. Qg3 {[%clk 0:02:19]}  Qxg3 {[%clk 0:00:50]} 16. hxg3 {[%clk 0:02:19]}  Ng6 {[%clk 0:00:51]} 17. a4 {[%clk 0:01:46]}  a6 {[%clk 0:00:36]} 18. Nc5 {[%clk 0:01:46]}  Bxc5 {[%clk 0:00:30]} 19. bxc5 {[%clk 0:01:47]}  Bc6 {[%clk 0:00:29]} 20. Bd4 {[%clk 0:01:31]}  Rc8 {[%clk 0:00:22]} 21. f4 {[%clk 0:01:28]}  Ne7 {[%clk 0:00:22]} 22. Kf2 {[%clk 0:01:25]}  g6 {[%clk 0:00:22]} 23. g4 {[%clk 0:01:22]}  Kd7 {[%clk 0:00:19]} 24. Rh1 {[%clk 0:01:22]}  h5 {[%clk 0:00:16]} 25. gxh5 {[%clk 0:01:22]}  gxh5 {[%clk 0:00:17]} 26. Rh4 {[%clk 0:01:18]}  Ng6 {[%clk 0:00:14]} 27. Bxg6 {[%clk 0:01:10]}  fxg6 {[%clk 0:00:15]} 28. a5 {[%clk 0:00:55]}  Rhf8 {[%clk 0:00:13]} 29. Ke3 {[%clk 0:00:53]}  Rf5 {[%clk 0:00:11]} 30. g4 {[%clk 0:00:47]}  hxg4 {[%clk 0:00:07]} 31. Rh7+ {[%clk 0:00:48]}  Ke8 {[%clk 0:00:06]} 32. Rg1 {[%clk 0:00:49]}  Rf7 {[%clk 0:00:06]} 33. Rh6 {[%clk 0:00:47]}  Rg7 {[%clk 0:00:06]} 34. Rxg4 {[%clk 0:00:46]}  Kf7 {[%clk 0:00:07]} 35. f5 {[%clk 0:00:39]}  exf5 {[%clk 0:00:06]} 36. e6+ {[%clk 0:00:28]}  Kxe6 {[%clk 0:00:06]} 37. Rgxg6+ {[%clk 0:00:28]}  Rxg6 {[%clk 0:00:06]} 38. Rxg6+ {[%clk 0:00:29]}  Kf7 {[%clk 0:00:07]} 39. Rf6+ {[%clk 0:00:28]}  Ke7 {[%clk 0:00:07]} 40. Kf4 {[%clk 0:00:29]}  Rg8 {[%clk 0:00:06]} 41. Rh6 {[%clk 0:00:25]}  Rg4+ {[%clk 0:00:06]} 42. Ke3 {[%clk 0:00:21]}  Re4+ {[%clk 0:00:06]} 43. Kd3 {[%clk 0:00:21]}  f4 {[%clk 0:00:06]} 44. Bf2 {[%clk 0:00:08]}  Bb5+ {[%clk 0:00:05]} 45. Kc3 {[%clk 0:00:07]}  Bc6 {[%clk 0:00:06]} 46. Bh4+ {[%clk 0:00:07]}  Kf7 {[%clk 0:00:06]} 47. Bg5 {[%clk 0:00:06]}  f3 {[%clk 0:00:05]} 48. Rf6+ {[%clk 0:00:06]}  Kg7 {[%clk 0:00:05]} 49. Rxf3 {[%clk 0:00:07]}  Rc4+ {[%clk 0:00:05]} 50. Kb3 {[%clk 0:00:06]}  Rxc5 {[%clk 0:00:05]} 51. Bf6+ {[%clk 0:00:06]}  Kg6 {[%clk 0:00:05]} 52. Bc3 {[%clk 0:00:06]}  Rc4 {[%clk 0:00:05]} 53. Rf1 {[%clk 0:00:03]}  Rc5 {[%clk 0:00:04]} 54. Rf2 {[%clk 0:00:03]}  Rc4 {[%clk 0:00:04]} 55. Bb4 {[%clk 0:00:03]}  Kg5 {[%clk 0:00:04]} 56. c3 {[%clk 0:00:04]}  Kg4 {[%clk 0:00:05]} 57. Rf7 {[%clk 0:00:04]}  Rf4 {[%clk 0:00:05]} 58. Rg7+ {[%clk 0:00:04]}  Kf3 {[%clk 0:00:05]} 59. Bc5 {[%clk 0:00:04]}  Ke2 {[%clk 0:00:05]} 60. Bd4 {[%clk 0:00:04]}  Kd3 {[%clk 0:00:05]} 61. Rg3+ {[%clk 0:00:04]}  Ke2 {[%clk 0:00:06]} 62. Rg2+ {[%clk 0:00:04]}  Kf3 {[%clk 0:00:06]} 63. Rf2+ {[%clk 0:00:04]}  Ke4 {[%clk 0:00:07]} 64. Re2+ {[%clk 0:00:04]}  Kf5 {[%clk 0:00:07]} 65. Re7 {[%clk 0:00:04]}  Re4 {[%clk 0:00:08]} 66. Rf7+ {[%clk 0:00:04]}  Kg4 {[%clk 0:00:07]} 67. Rg7+ {[%clk 0:00:05]}  Kf3 {[%clk 0:00:08]} 68. Kb4 {[%clk 0:00:05]}  Ke2 {[%clk 0:00:08]} 69. Rg2+ {[%clk 0:00:05]}  Kd3 {[%clk 0:00:08]} 70. Rg3+ {[%clk 0:00:05]}  Kc2 {[%clk 0:00:09]} 71. Rg2+ {[%clk 0:00:05]}  Kd3 {[%clk 0:00:09]} 72. Kc5 {[%clk 0:00:05]}  Re2 {[%clk 0:00:06]} 73. Rg3+ {[%clk 0:00:05]}  Kc2 {[%clk 0:00:06]} 74. Kb6 {[%clk 0:00:05]}  Kb3 {[%clk 0:00:06]} 75. Rg6 {[%clk 0:00:05]}  Kc4 {[%clk 0:00:07]} 76. Rg3 {[%clk 0:00:03]}  Rb2+ {[%clk 0:00:07]} 77. Kc7 {[%clk 0:00:03]}  Rb5 {[%clk 0:00:07]} 78. Bb6 {[%clk 0:00:03]}  Rb3 {[%clk 0:00:08]} 79. Bd4 {[%clk 0:00:02]}  Ra3 {[%clk 0:00:08]} 80. Kb6 {[%clk 0:00:02]}  Rb3+ {[%clk 0:00:09]} 81. Kc7 {[%clk 0:00:02]}  Rb5 {[%clk 0:00:09]} 82. Bb6 {[%clk 0:00:02]}  Rb3 {[%clk 0:00:08]} 83. Bd4 {[%clk 0:00:03]} 1/2-1/2


[Site "https://www.chess.com"]

[Event "Titled Tuesday Blitz December 20 Early 2022"]
[White "Kotofeyca"]
[Black "AnaKuchava"]
[WhiteElo "2372"]
[BlackElo "2212"]
[Result "0-1"]
[Round "09"]
[TimeControl "180+2"]
[Date "2022.12.20"]
[WhiteClock "0:00:33"]
[BlackClock "0:00:16"]

1. d4 {[%clk 0:03:00]}  d5 {[%clk 0:02:52]} 2. c4 {[%clk 0:03:00]}  e6 {[%clk 0:02:51]} 3. Nc3 {[%clk 0:03:01]}  Be7 {[%clk 0:02:50]} 4. Nf3 {[%clk 0:03:01]}  Nf6 {[%clk 0:02:50]} 5. cxd5 {[%clk 0:03:00]}  exd5 {[%clk 0:02:49]} 6. Bg5 {[%clk 0:03:00]}  c6 {[%clk 0:02:49]} 7. Qc2 {[%clk 0:03:00]}  g6 {[%clk 0:02:48]} 8. e3 {[%clk 0:03:01]}  Bf5 {[%clk 0:02:43]} 9. Bd3 {[%clk 0:03:01]}  Bxd3 {[%clk 0:02:39]} 10. Qxd3 {[%clk 0:03:02]}  O-O {[%clk 0:02:38]} 11. O-O {[%clk 0:03:02]}  Nbd7 {[%clk 0:02:37]} 12. Rab1 {[%clk 0:03:01]}  a5 {[%clk 0:02:34]} 13. a3 {[%clk 0:02:59]}  Re8 {[%clk 0:02:31]} 14. Rfc1 {[%clk 0:02:55]}  Ne4 {[%clk 0:02:16]} 15. Bf4 {[%clk 0:02:52]}  Bf8 {[%clk 0:01:59]} 16. Na4 {[%clk 0:02:42]}  b5 {[%clk 0:01:54]} 17. Nc3 {[%clk 0:02:42]}  Nb6 {[%clk 0:01:53]} 18. Ne5 {[%clk 0:02:29]}  Rc8 {[%clk 0:01:44]} 19. f3 {[%clk 0:02:12]}  Nd6 {[%clk 0:01:38]} 20. e4 {[%clk 0:02:10]}  dxe4 {[%clk 0:01:28]} 21. fxe4 {[%clk 0:02:07]}  Ndc4 {[%clk 0:01:21]} 22. a4 {[%clk 0:01:50]}  Nxe5 {[%clk 0:01:17]} 23. Bxe5 {[%clk 0:01:50]}  Rxe5 {[%clk 0:01:17]} 24. axb5 {[%clk 0:01:45]}  cxb5 {[%clk 0:01:13]} 25. Nxb5 {[%clk 0:01:43]}  Rxc1+ {[%clk 0:01:09]} 26. Rxc1 {[%clk 0:01:44]}  Bb4 {[%clk 0:00:56]} 27. Rc6 {[%clk 0:01:23]}  Rg5 {[%clk 0:00:50]} 28. e5 {[%clk 0:01:05]}  Rxe5 {[%clk 0:00:43]} 29. Nc7 {[%clk 0:00:58]}  Re1+ {[%clk 0:00:35]} 30. Kf2 {[%clk 0:00:57]}  Qh4+ {[%clk 0:00:32]} 31. Kf3 {[%clk 0:00:49]}  Qh5+ {[%clk 0:00:21]} 32. Kg3 {[%clk 0:00:44]}  Qg5+ {[%clk 0:00:19]} 33. Kf2 {[%clk 0:00:39]}  Qf4+ {[%clk 0:00:19]} 34. Qf3 {[%clk 0:00:38]}  Qxd4+ {[%clk 0:00:19]} 35. Kg3 {[%clk 0:00:35]}  Re3 {[%clk 0:00:19]} 36. Rf6 {[%clk 0:00:32]}  Rxf3+ {[%clk 0:00:18]} 37. Rxf3 {[%clk 0:00:33]}  Bd6+ {[%clk 0:00:18]} 38. Kh3 {[%clk 0:00:32]}  Bxc7 {[%clk 0:00:18]} 39. b3 {[%clk 0:00:32]}  h5 {[%clk 0:00:16]} 40. g4 {[%clk 0:00:33]}  Qxg4# {[%clk 0:00:16]} 0-1


[Site "https://www.chess.com"]

[Event "Titled Tuesday Blitz December 20 Early 2022"]
[White "Larochelle, Martial"]
[Black "DIMONBANAN"]
[WhiteFideId "2016311"]
[WhiteElo "2039"]
[BlackElo "2416"]
[Result "0-1"]
[Round "09"]
[TimeControl "180+2"]
[Date "2022.12.20"]
[WhiteClock "0:01:17"]
[BlackClock "0:00:15"]

1. d4 {[%clk 0:03:00]}  d5 {[%clk 0:02:55]} 2. c4 {[%clk 0:03:01]}  e6 {[%clk 0:02:55]} 3. Nf3 {[%clk 0:02:59]}  Nf6 {[%clk 0:02:55]} 4. g3 {[%clk 0:02:52]}  dxc4 {[%clk 0:02:55]} 5. Bg2 {[%clk 0:02:45]}  c5 {[%clk 0:02:55]} 6. O-O {[%clk 0:02:43]}  Nc6 {[%clk 0:02:55]} 7. dxc5 {[%clk 0:02:43]}  Qxd1 {[%clk 0:02:56]} 8. Rxd1 {[%clk 0:02:44]}  Bxc5 {[%clk 0:02:57]} 9. Nbd2 {[%clk 0:02:44]}  c3 {[%clk 0:02:57]} 10. bxc3 {[%clk 0:02:45]}  O-O {[%clk 0:02:58]} 11. Nb3 {[%clk 0:02:46]}  Be7 {[%clk 0:02:58]} 12. c4 {[%clk 0:02:46]}  Rd8 {[%clk 0:02:31]} 13. Bb2 {[%clk 0:02:42]}  Bd7 {[%clk 0:02:30]} 14. Nfd4 {[%clk 0:02:35]}  Rac8 {[%clk 0:02:12]} 15. Rac1 {[%clk 0:02:33]}  a6 {[%clk 0:02:05]} 16. h3 {[%clk 0:02:10]}  Kf8 {[%clk 0:02:04]} 17. g4 {[%clk 0:02:08]}  h6 {[%clk 0:01:43]} 18. e3 {[%clk 0:02:04]}  Ne8 {[%clk 0:01:05]} 19. f4 {[%clk 0:01:50]}  Nxd4 {[%clk 0:00:37]} 20. exd4 {[%clk 0:01:36]}  Bc6 {[%clk 0:00:34]} 21. d5 {[%clk 0:01:35]}  exd5 {[%clk 0:00:35]} 22. cxd5 {[%clk 0:01:36]}  Ba4 {[%clk 0:00:35]} 23. Rxc8 {[%clk 0:01:20]}  Rxc8 {[%clk 0:00:35]} 24. Rd4 {[%clk 0:01:21]}  Bxb3 {[%clk 0:00:33]} 25. axb3 {[%clk 0:01:19]}  Bc5 {[%clk 0:00:34]} 26. Kf2 {[%clk 0:01:04]}  Bxd4+ {[%clk 0:00:30]} 27. Bxd4 {[%clk 0:01:05]}  Rc2+ {[%clk 0:00:28]} 28. Kg3 {[%clk 0:01:05]}  Nd6 {[%clk 0:00:26]} 29. f5 {[%clk 0:01:03]}  f6 {[%clk 0:00:24]} 30. h4 {[%clk 0:01:01]}  Ke7 {[%clk 0:00:24]} 31. g5 {[%clk 0:01:02]}  Nxf5+ {[%clk 0:00:24]} 32. Kf4 {[%clk 0:00:59]}  Nxd4 {[%clk 0:00:25]} 33. Ke4 {[%clk 0:01:00]}  Rxg2 {[%clk 0:00:24]} 34. Kd3 {[%clk 0:01:01]}  hxg5 {[%clk 0:00:23]} 35. Kc4 {[%clk 0:01:02]}  gxh4 {[%clk 0:00:24]} 36. b4 {[%clk 0:01:02]}  h3 {[%clk 0:00:24]} 37. b5 {[%clk 0:01:03]}  axb5+ {[%clk 0:00:24]} 38. Kc5 {[%clk 0:01:03]}  h2 {[%clk 0:00:23]} 39. d6+ {[%clk 0:01:04]}  Kd7 {[%clk 0:00:23]} 40. Kb6 {[%clk 0:01:05]}  h1=Q {[%clk 0:00:23]} 41. Kc5 {[%clk 0:01:06]}  Qc1+ {[%clk 0:00:23]} 42. Kb4 {[%clk 0:01:07]}  Rb2+ {[%clk 0:00:22]} 43. Ka5 {[%clk 0:01:07]}  Qa1+ {[%clk 0:00:22]} 44. Kb6 {[%clk 0:01:08]}  Qa6+ {[%clk 0:00:23]} 45. Kc5 {[%clk 0:01:07]}  Qc6+ {[%clk 0:00:24]} 46. Kxd4 {[%clk 0:01:07]}  Qxd6+ {[%clk 0:00:25]} 47. Kc3 {[%clk 0:01:07]}  Rb4 {[%clk 0:00:25]} 48. Kc2 {[%clk 0:01:06]}  g5 {[%clk 0:00:24]} 49. Kc3 {[%clk 0:01:06]}  g4 {[%clk 0:00:25]} 50. Kc2 {[%clk 0:01:07]}  g3 {[%clk 0:00:25]} 51. Kc3 {[%clk 0:01:08]}  g2 {[%clk 0:00:26]} 52. Kc2 {[%clk 0:01:09]}  g1=Q {[%clk 0:00:27]} 53. Kc3 {[%clk 0:01:10]}  Qgg3+ {[%clk 0:00:26]} 54. Kc2 {[%clk 0:01:11]}  f5 {[%clk 0:00:26]} 55. Kc1 {[%clk 0:01:11]}  f4 {[%clk 0:00:27]} 56. Kc2 {[%clk 0:01:12]}  f3 {[%clk 0:00:27]} 57. Kc1 {[%clk 0:01:13]}  f2 {[%clk 0:00:27]} 58. Kc2 {[%clk 0:01:14]}  Rc4+ {[%clk 0:00:23]} 59. Kb2 {[%clk 0:01:14]}  f1=Q {[%clk 0:00:22]} 60. Ka2 {[%clk 0:01:15]}  Qff3 {[%clk 0:00:20]} 61. Kb2 {[%clk 0:01:16]}  Rh4 {[%clk 0:00:19]} 62. Ka2 {[%clk 0:01:17]}  b4 {[%clk 0:00:19]} 63. Kb2 {[%clk 0:01:18]}  b3 {[%clk 0:00:20]} 64. Kb1 {[%clk 0:01:17]}  Qe1+ {[%clk 0:00:18]} 65. Kb2 {[%clk 0:01:18]}  Qfe2+ {[%clk 0:00:18]} 66. Kxb3 {[%clk 0:01:17]}  Qdb4# {[%clk 0:00:15]} 0-1


[Site "https://www.chess.com"]